fUSD/lending_fUSD_20250106
["ID","MTS","AMOUNT","RATE_DAILY","PERIOD"]
[347813180,1736124648821,-500.0,0.00011647,2]
[347813181,1736124648831,-500.0,0.00011647,2]
[347813182,1736124648840,-500.0,0.00011647,2]
[347813183,1736124648851,-500.0,0.00011647,2]
[347813184,1736124648860,-500.0,0.00011647,2]
[347813185,1736124648871,-500.0,0.00011647,2]
[347813186,1736124648881,-500.0,0.00011647,2]
[347813187,1736124648891,-333.39,0.00011647,2]
[347813188,1736124648902,-500.0,0.00011647,2]
[347813189,1736124648913,-500.0,0.00011647,2]
[347813190,1736124648923,-500.0,0.00011647,2]
[347813191,1736124648932,-500.0,0.00011647,2]
[347813192,1736124648943,-500.0,0.00011647,2]
[347813193,1736124648953,-500.0,0.00011647,2]
[347813194,1736124648962,-290.37,0.00011647,2]
[347813195,1736124648972,-500.0,0.00011647,2]
[347813196,1736124648982,-500.0,0.00011647,2]
[347813197,1736124648992,-500.0,0.00011647,2]
[347813198,1736124649002,-500.0,0.00011647,2]
[347813199,1736124649012,-530.46,0.00011647,2]
[347813200,1736124649021,-1645.16,0.00011647,2]
[347813201,1736124649031,-523.59,0.00011647,2]
[347813202,1736124649041,-500.0,0.00011647,2]
[347813203,1736124649051,-1806.92,0.00011647,2]
[347813204,1736124649060,-971.68,0.00011647,2]
[347813205,1736124649071,-500.0,0.00011647,2]
[347813206,1736124649081,-637.35,0.00011647,2]
[347813207,1736124649095,-500.0,0.00011647,2]
[347813208,1736124649105,-569.75,0.00011648,2]
[347813209,1736124649114,-500.0,0.00011648,2]
[347813210,1736124649124,-500.0,0.00011648,2]
[347813211,1736124649134,-924.01,0.00011648,2]
[347813212,1736124649143,-4316.10684128,0.00011699,2]
[347813213,1736124649152,-150.0,0.00011704,2]
[347813214,1736124649162,-150.0,0.00011708,2]
[347813215,1736124649171,-150.0,0.0001171,2]
[347813216,1736124649180,-150.0,0.00011717,2]
[347813217,1736124649190,-150.0,0.00011718,2]
[347813218,1736124649200,-150.0,0.00011722,2]
[347813219,1736124649211,-150.0,0.00011733,2]
[347813220,1736124649221,-150.0,0.00011733,2]
[347813221,1736124649231,-150.0,0.00011737,2]
[347813222,1736124649241,-150.0,0.00011739,2]
[347813223,1736124649251,-150.0,0.00011742,2]
[347813224,1736124649262,-150.0,0.00011742,2]
[347813225,1736124649271,-150.0,0.00011744,2]
[347813226,1736124649281,-150.0,0.00011749,2]
[347813227,1736124649291,-150.0,0.00011753,2]
[347813228,1736124649301,-150.0,0.00011756,2]
[347813229,1736124649310,-150.0,0.00011757,2]
[347813230,1736124649319,-150.0,0.00011758,2]
[347813231,1736124649327,-150.0,0.00011758,2]
[347813232,1736124649336,-150.0,0.00011759,2]
[347813233,1736124649345,-150.0,0.0001176,2]
[347813234,1736124649354,-429.58022011,0.00011762,2]
[347813235,1736124649363,-150.0,0.00011764,2]
[347813236,1736124649373,-150.0,0.00011767,2]
[347813237,1736124649383,-150.0,0.00011772,2]
[347813238,1736124649393,-150.0,0.00011772,2]
[347813239,1736124649403,-150.0,0.00011778,2]
[347813240,1736124649414,-3000.0,0.0001178,2]
[347813241,1736124649423,-150.0,0.00011782,2]
[347813242,1736124649433,-150.0,0.00011783,2]
[347813243,1736124649446,-150.0,0.00011784,2]
[347813244,1736124649456,-1000.0,0.00011786,2]
[347813245,1736124649466,-150.0,0.00011789,2]
[347813246,1736124649476,-150.0,0.0001179,2]
[347813247,1736124649486,-150.0,0.00011799,2]
[347813248,1736124649496,-167.0281024,0.000118,2]
[347813249,1736124649506,-1000.0,0.000118,2]
[347813250,1736124649516,-162.8637275,0.000118,2]
[347813251,1736124649526,-3244.02244074,0.000118,2]
[347813252,1736124649536,-3244.02244074,0.000118,2]
[347813253,1736124649546,-3244.02244074,0.000118,2]
[347813254,1736124649555,-3244.02244074,0.000118,2]
[347813255,1736124649565,-3244.02244074,0.000118,2]
[347813256,1736124649574,-3244.02244074,0.000118,2]
[347813257,1736124649584,-3244.02244074,0.000118,2]
[347813258,1736124649594,-3244.02244074,0.000118,2]
[347813259,1736124649604,-3244.02244074,0.000118,2]
[347813260,1736124649614,-3244.02244074,0.000118,2]
[347813261,1736124649624,-3244.02244074,0.000118,2]
[347813262,1736124649636,-3244.02244074,0.000118,2]
[347813263,1736124649646,-3244.02244074,0.000118,2]
[347813264,1736124649655,-3244.02244074,0.000118,2]
[347813265,1736124649666,-3244.02244074,0.000118,2]
[347813266,1736124649677,-3244.02244074,0.000118,2]
[347813267,1736124649686,-3244.02244074,0.000118,2]
[347813268,1736124649698,-150.0,0.000118,2]
[347813269,1736124649709,-150.0,0.00011802,2]
[347813270,1736124649718,-500.0,0.00011805,2]
[347813271,1736124649728,-2000.0,0.00011805,2]
[347813272,1736124649740,-500.0,0.00011805,2]
[347813273,1736124649749,-150.0,0.00011807,2]
[347813274,1736124649759,-150.0,0.00011807,2]
[347813275,1736124649770,-150.0,0.00011808,2]
[347813276,1736124649780,-150.0,0.00011814,2]
[347813277,1736124649789,-150.0,0.00011817,2]
[347813278,1736124649799,-150.0,0.00011819,2]
[347813279,1736124649808,-4035.93498122,0.0001182,2]
[347813280,1736124649817,-150.0,0.0001182,2]
[347813281,1736124649828,-150.0,0.0001182,2]
[347813282,1736124649837,-150.0,0.00011824,2]
[347813283,1736124649847,-397.43,0.00011826,2]
[347813284,1736124649857,-150.0,0.00011828,2]
[347813285,1736124649866,-150.0,0.00011828,2]
[347813286,1736124649875,-150.0,0.00011832,2]
[347813287,1736124649885,-150.0,0.0001184,2]
[347813288,1736124649895,-150.0,0.00011843,2]
[347813289,1736124649905,-150.0,0.00011845,2]
[347813290,1736124649915,-150.0,0.00011848,2]
[347813291,1736124649924,-150.0,0.00011848,2]
[347813292,1736124649934,-150.0,0.0001185,2]
[347813293,1736124649944,-150.0,0.00011852,2]
[347813294,1736124649954,-150.0,0.00011852,2]
[347813295,1736124649964,-150.0,0.00011854,2]
[347813296,1736124649974,-150.0,0.00011856,2]
[347813297,1736124649983,-167.02810237,0.00011857,2]
[347813298,1736124649994,-150.0,0.00011858,2]
[347813299,1736124650003,-150.0,0.00011863,2]
[347813300,1736124650014,-150.0,0.00011864,2]
[347813301,1736124650023,-150.0,0.00011865,2]
[347813302,1736124650032,-150.0,0.00011865,2]
[347813303,1736124650042,-150.0,0.00011866,2]
[347813304,1736124650051,-150.0,0.00011866,2]
[347813305,1736124650060,-150.0,0.00011869,2]
[347813306,1736124650070,-500.0,0.00011873,2]
[347813307,1736124650081,-500.0,0.00011873,2]
[347813308,1736124650093,-150.0,0.00011876,2]
[347813309,1736124650102,-162.86372747,0.00011878,2]
[347813310,1736124650112,-150.0,0.00011881,2]
[347813311,1736124650123,-150.0,0.00011891,2]
[347813312,1736124650133,-150.0,0.00011894,2]
[347813313,1736124650142,-199.92799543,0.00011898,3]
[347813314,1736124650152,-200.07200457,0.00011898,3]
[347813315,1736124650162,-19880.98964482,0.00011899,2]
[347813316,1736124650172,-84870.41057821,0.00011899,2]
[347813317,1736124650190,-518.76477905,0.00011899,2]
[347813318,1736124650208,-302.0,0.00011646,2]
[347813319,1736124903941,176.0,0.00011646,30]
[347813320,1736124904250,176.0,0.00012191,30]
[347813323,1736125203296,158.0,0.00011646,30]
[347813324,1736125203612,158.0,0.00012191,30]
[347813325,1736125503248,150.0,0.00011646,30]
[347813326,1736125503573,150.0,0.00012221,30]
[347813349,1736125803560,150.0,0.00011646,30]
[347813350,1736125804042,150.0,0.00012293,30]
[347813358,1736125832213,-379.99999,8.219e-05,2]
[347813359,1736125832226,-214.73001,8.219e-05,2]
[347813360,1736125832235,-387.97,9.07e-05,2]
[347813361,1736125832245,-188.65,9.084e-05,2]
[347813362,1736125832254,-422.93198773,9.104e-05,2]
[347813363,1736125832276,-1509.75801227,9.104e-05,2]
[347813364,1736125832286,-151.82,9.236e-05,2]
[347813365,1736125832296,-272.35,9.236e-05,2]
[347813366,1736125832305,-178.00357297,9.335e-05,2]
[347813367,1736125832316,-878.99642703,9.335e-05,2]
[347813368,1736125832326,-250.0,9.406e-05,2]
[347813369,1736125832335,-166.98,9.492e-05,2]
[347813370,1736125832345,-250.0,9.547e-05,2]
[347813371,1736125832354,-1000.0,9.557e-05,2]
[347813372,1736125832363,-1544.04006958,9.772e-05,2]
[347813373,1736125832375,-920.76715178,9.772e-05,2]
[347813374,1736125832403,-194467.45388589,9.772e-05,2]
[347813375,1736125832414,-1438.04840585,9.776e-05,2]
[347813376,1736125832423,-1438.04840585,9.777e-05,2]
[347813377,1736125832433,-196932.26110725,9.782e-05,2]
[347813378,1736125832442,-196932.26110725,9.784e-05,2]
[347813379,1736125832451,-1438.04840585,9.785e-05,2]
[347813380,1736125832461,-1438.04840585,9.788e-05,2]
[347813381,1736125832471,-196932.26110725,9.789e-05,2]
[347813382,1736125832480,-29172.50585046,9.79e-05,2]
[347813383,1736125832490,-196932.26110725,9.79e-05,2]
[347813384,1736125832499,-29172.50585046,9.791e-05,2]
[347813385,1736125832508,-1438.04840585,9.793e-05,2]
[347813386,1736125832518,-29172.50585046,9.794e-05,2]
[347813387,1736125832527,-29172.50585046,9.796e-05,2]
[347813388,1736125832537,-1438.04840585,9.796e-05,2]
[347813389,1736125832546,-196932.26110725,9.797e-05,2]
[347813390,1736125832556,-29172.50585046,9.797e-05,2]
[347813391,1736125832565,-29172.50585046,9.8e-05,2]
[347813392,1736125832574,-150.0,9.825e-05,2]
[347813393,1736125832584,-1057.0,9.826e-05,2]
[347813394,1736125832593,-6199.71,9.826e-05,2]
[347813395,1736125832603,-514.32,9.826e-05,2]
[347813396,1736125832612,-150.99,9.826e-05,2]
[347813397,1736125832621,-299.99,9.826e-05,2]
[347813398,1736125832630,-16045.73,9.826e-05,2]
[347813399,1736125832640,-6975.44862894,0.0001,2]
[347813400,1736125832649,-2338.24839945,0.00010075,2]
[347813401,1736125832669,-1784.58000001,0.00010075,2]
[347813402,1736125832689,-5689.6690829,0.00010075,2]
[347813403,1736125832701,-111.55251764,0.00010075,2]
[347813404,1736125832711,-4334.84749432,0.00010078,2]
[347813405,1736125832723,-5589.20250568,0.00010078,2]
[347813406,1736125832732,-9924.05,0.00010081,2]
[347813407,1736125832742,-3934.74749432,0.00010083,2]
[347813408,1736125832753,-2100.0,0.00010083,2]
[347813409,1736125832764,-498.92723845,0.00010083,2]
[347813410,1736125832777,-3390.37526723,0.00010083,2]
[347813412,1736125832786,-9924.05,0.00010086,2]
[347813413,1736125832795,-9924.05,0.00010089,2]
[347813414,1736125832805,-9924.05,0.00010091,2]
[347813415,1736125832815,-9924.05,0.00010094,2]
[347813416,1736125832824,-9924.05,0.00010097,2]
[347813417,1736125832834,-9924.05,0.00010099,2]
[347813418,1736125832844,-9924.05,0.00010102,2]
[347813420,1736125832854,-9924.05,0.00010105,2]
[347813421,1736125832863,-9924.05,0.00010107,2]
[347813422,1736125832873,-9924.05,0.0001011,2]
[347813423,1736125832883,-9924.05,0.00010113,2]
[347813424,1736125832892,-9924.05,0.00010115,2]
[347813425,1736125832903,-504.15946017,0.00010118,2]
[347813426,1736125832915,-9924.05,0.00010118,2]
[347813427,1736125832926,-9924.05,0.00010121,2]
[347813428,1736125832936,-9924.05,0.00010123,2]
[347813429,1736125832945,-415.4538744,0.00010124,2]
[347813430,1736125832955,-500.0,0.00010124,2]
[347813431,1736125832965,-708.48,0.00010124,2]
[347813432,1736125832975,-821.81,0.00010124,2]
[347813433,1736125832984,-639.2,0.00010124,2]
[347813434,1736125832994,-500.0,0.00010124,2]
[347813435,1736125833005,-500.0,0.00010124,2]
[347813436,1736125833015,-500.0,0.00010124,2]
[347813437,1736125833025,-712.07,0.00010124,2]
[347813438,1736125833035,-500.0,0.00010124,2]
[347813439,1736125833044,-500.0,0.00010124,2]
[347813440,1736125833054,-510.63,0.00010124,2]
[347813441,1736125833064,-500.0,0.00010124,2]
[347813442,1736125833074,-500.0,0.00010124,2]
[347813443,1736125833083,-500.0,0.00010124,2]
[347813444,1736125833093,-500.0,0.00010124,2]
[347813445,1736125833103,-678.05,0.00010124,2]
[347813446,1736125833113,-500.0,0.00010124,2]
[347813447,1736125833122,-500.0,0.00010124,2]
[347813448,1736125833132,-500.0,0.00010124,2]
[347813449,1736125833142,-523.11,0.00010124,2]
[347813450,1736125833151,-500.0,0.00010124,2]
[347813451,1736125833164,-500.0,0.00010124,2]
[347813452,1736125833174,-500.0,0.00010124,2]
[347813453,1736125833183,-500.0,0.00010124,2]
[347813454,1736125833193,-500.0,0.00010124,2]
[347813455,1736125833203,-500.0,0.00010124,2]
[347813456,1736125833213,-531.8,0.00010124,2]
[347813457,1736125833223,-500.0,0.00010124,2]
[347813458,1736125833232,-2539.72,0.00010124,2]
[347813459,1736125833242,-500.0,0.00010124,2]
[347813460,1736125833252,-500.0,0.00010124,2]
[347813461,1736125833261,-500.0,0.00010125,2]
[347813462,1736125833272,-500.0,0.00010125,2]
[347813463,1736125833282,-500.0,0.00010125,2]
[347813464,1736125833291,-500.0,0.00010125,2]
[347813465,1736125833301,-500.0,0.00010125,2]
[347813466,1736125833311,-500.0,0.00010125,2]
[347813467,1736125833321,-500.0,0.00010125,2]
[347813468,1736125833331,-254.63635664,0.00010125,2]
[347813469,1736125833341,-500.0,0.00010125,2]
[347813470,1736125833351,-194.64020175,0.00010125,2]
[347813471,1736125833360,-500.0,0.00010125,2]
[347813472,1736125833370,-500.0,0.00010125,2]
[347813473,1736125833380,-500.0,0.00010125,2]
[347813474,1736125833390,-192.90335714,0.00010125,2]
[347813475,1736125833399,-500.0,0.00010125,2]
[347813476,1736125833410,-500.0,0.00010125,2]
[347813477,1736125833420,-500.0,0.00010125,2]
[347813478,1736125833430,-500.0,0.00010125,2]
[347813479,1736125833439,-500.0,0.00010125,2]
[347813480,1736125833449,-500.0,0.00010125,2]
[347813481,1736125833458,-500.0,0.00010125,2]
[347813482,1736125833468,-500.0,0.00010125,2]
[347813483,1736125833477,-500.0,0.00010125,2]
[347813484,1736125833487,-500.0,0.00010125,2]
[347813485,1736125833496,-500.0,0.00010125,2]
[347813486,1736125833506,-500.0,0.00010125,2]
[347813487,1736125833516,-500.0,0.00010125,2]
[347813488,1736125833526,-500.0,0.00010125,2]
[347813489,1736125833535,-500.0,0.00010125,2]
[347813490,1736125833545,-500.0,0.00010125,2]
[347813491,1736125833555,-500.0,0.00010125,2]
[347813492,1736125833564,-500.0,0.00010125,2]
[347813493,1736125833574,-500.0,0.00010125,2]
[347813494,1736125833583,-500.0,0.00010125,2]
[347813495,1736125833593,-500.0,0.00010125,2]
[347813496,1736125833602,-9924.05,0.00010126,2]
[347813497,1736125833612,-77284.1600231,0.00010126,2]
[347813498,1736125834117,-64352.26521733,0.00010126,2]
[347813499,1736125834128,-165.45,0.00010135,2]
[347813500,1736125834137,-727.05,0.00010137,2]
[347813501,1736125834147,-748.47919743,0.00010272,2]
[347813502,1736125834159,-1057.0,0.00010317,2]
[347813503,1736125834168,-272.35,0.00010391,2]
[347813504,1736125834178,-708.48,0.00010398,2]
[347813505,1736125834187,-821.81,0.00010398,2]
[347813506,1736125834197,-500.0,0.00010398,2]
[347813507,1736125834207,-500.0,0.00010398,2]
[347813508,1736125834216,-500.0,0.00010398,2]
[347813509,1736125834226,-712.07,0.00010398,2]
[347813510,1736125834235,-500.0,0.00010398,2]
[347813511,1736125834245,-500.0,0.00010398,2]
[347813512,1736125834255,-500.0,0.00010398,2]
[347813513,1736125834269,-500.0,0.00010398,2]
[347813514,1736125834281,-323.38,0.00010398,2]
[347813515,1736125834291,-678.05,0.00010398,2]
[347813516,1736125834300,-500.0,0.00010398,2]
[347813517,1736125834310,-500.0,0.00010398,2]
[347813518,1736125834320,-500.0,0.00010398,2]
[347813519,1736125834329,-523.11,0.00010398,2]
[347813520,1736125834339,-500.0,0.00010398,2]
[347813521,1736125834349,-500.0,0.00010398,2]
[347813522,1736125834358,-500.0,0.00010398,2]
[347813523,1736125834367,-500.0,0.00010398,2]
[347813524,1736125834377,-531.8,0.00010398,2]
[347813525,1736125834387,-500.0,0.00010398,2]
[347813526,1736125834396,-2539.72,0.00010398,2]
[347813527,1736125834407,-500.0,0.00010398,2]
[347813528,1736125834417,-500.0,0.00010398,2]
[347813529,1736125834426,-594.73,0.00010434,2]
[347813530,1736125834436,-150.0,0.00010603,2]
[347813531,1736125834445,-150.00000001,0.00010603,2]
[347813532,1736125834455,-150.0,0.00010603,2]
[347813533,1736125834464,-708.48,0.00010672,2]
[347813534,1736125834474,-821.81,0.00010672,2]
[347813535,1736125834484,-500.0,0.00010672,2]
[347813536,1736125834493,-500.0,0.00010672,2]
[347813537,1736125834502,-500.0,0.00010672,2]
[347813538,1736125834512,-712.07,0.00010672,2]
[347813539,1736125834522,-500.0,0.00010672,2]
[347813540,1736125834532,-500.0,0.00010672,2]
[347813541,1736125834542,-500.0,0.00010672,2]
[347813542,1736125834552,-500.0,0.00010672,2]
[347813543,1736125834562,-500.0,0.00010672,2]
[347813544,1736125834571,-678.05,0.00010672,2]
[347813545,1736125834581,-500.0,0.00010672,2]
[347813546,1736125834590,-500.0,0.00010672,2]
[347813547,1736125834600,-523.11,0.00010672,2]
[347813548,1736125834610,-500.0,0.00010672,2]
[347813549,1736125834620,-500.0,0.00010672,2]
[347813550,1736125834629,-500.0,0.00010672,2]
[347813551,1736125834638,-531.8,0.00010672,2]
[347813552,1736125834647,-500.0,0.00010672,2]
[347813553,1736125834659,-2539.72,0.00010672,2]
[347813554,1736125834668,-500.0,0.00010672,2]
[347813555,1736125834678,-1000.0,0.00010751,2]
[347813556,1736125834688,-4420.0,0.00010768,2]
[347813557,1736125834697,-255.0,0.00010808,2]
[347813558,1736125834707,-1057.0,0.00010833,2]
[347813559,1736125834717,-172.43318076,0.000109,2]
[347813560,1736125834727,-1506.21,0.00010933,2]
[347813561,1736125834737,-708.48,0.00010946,2]
[347813562,1736125834747,-821.81,0.00010946,2]
[347813563,1736125834756,-500.0,0.00010946,2]
[347813564,1736125834766,-500.0,0.00010946,2]
[347813565,1736125834775,-712.07,0.00010946,2]
[347813566,1736125834785,-500.0,0.00010946,2]
[347813567,1736125834795,-500.0,0.00010946,2]
[347813568,1736125834804,-500.0,0.00010946,2]
[347813569,1736125834814,-500.0,0.00010946,2]
[347813570,1736125834824,-500.0,0.00010946,2]
[347813571,1736125834834,-444.83290678,0.00010946,2]
[347813572,1736125834847,-233.21709322,0.00010946,2]
[347813573,1736125834857,-500.0,0.00010946,2]
[347813574,1736125834867,-523.11,0.00010946,2]
[347813575,1736125834877,-500.0,0.00010946,2]
[347813576,1736125834887,-219.87,0.00010946,2]
[347813577,1736125834896,-263.122869,0.00010946,2]
[347813578,1736125834906,-500.0,0.00010946,2]
[347813579,1736125834916,-531.8,0.00010946,2]
[347813580,1736125834930,-500.0,0.00010946,2]
[347813581,1736125834940,-2539.72,0.00010946,2]
[347813582,1736125834950,-500.0,0.00010946,2]
[347813583,1736125834960,-1480.63,0.00010952,2]
[347813584,1736125834970,-150.0,0.00010959,2]
[347813585,1736125834980,-500.0,0.00010975,2]
[347813586,1736125834989,-500.0,0.00010975,2]
[347813587,1736125835001,-500.0,0.00010975,2]
[347813588,1736125835012,-500.0,0.00010975,2]
[347813589,1736125835021,-562.44,0.00010975,2]
[347813590,1736125835031,-1317.54,0.00010975,2]
[347813591,1736125835041,-500.0,0.00010975,2]
[347813592,1736125835051,-500.0,0.00010975,2]
[347813593,1736125835060,-500.0,0.00010975,2]
[347813594,1736125835070,-500.0,0.00010975,2]
[347813595,1736125835079,-500.0,0.00010975,2]
[347813596,1736125835089,-500.0,0.00010975,2]
[347813597,1736125835098,-1754.83,0.00010975,2]
[347813598,1736125835107,-631.16,0.00010975,2]
[347813599,1736125835117,-500.0,0.00010976,2]
[347813600,1736125835126,-500.0,0.00010976,2]
[347813601,1736125835135,-500.0,0.00010976,2]
[347813602,1736125835145,-500.0,0.00010976,2]
[347813603,1736125835154,-500.0,0.00010976,2]
[347813604,1736125835164,-500.0,0.00010976,2]
[347813605,1736125835174,-500.0,0.00010976,2]
[347813606,1736125835183,-500.0,0.00010976,2]
[347813607,1736125835192,-500.0,0.00010976,2]
[347813608,1736125835202,-500.0,0.00010976,2]
[347813609,1736125835212,-500.0,0.00010976,2]
[347813610,1736125835221,-500.0,0.00010976,2]
[347813611,1736125835231,-500.0,0.00010976,2]
[347813612,1736125835241,-500.0,0.00010976,2]
[347813613,1736125835250,-607.38,0.00010976,2]
[347813614,1736125835260,-255.83370233,0.00010976,2]
[347813615,1736125835270,-500.0,0.00010976,2]
[347813616,1736125835279,-500.0,0.00010976,2]
[347813617,1736125835288,-500.0,0.00010976,2]
[347813618,1736125835298,-511.85,0.00010976,2]
[347813619,1736125835307,-500.0,0.00010976,2]
[347813620,1736125835317,-500.0,0.00010976,2]
[347813621,1736125835327,-500.0,0.00010976,2]
[347813622,1736125835336,-500.0,0.00010976,2]
[347813623,1736125835346,-500.0,0.00010976,2]
[347813624,1736125835355,-500.0,0.00010976,2]
[347813625,1736125835365,-500.0,0.00010976,2]
[347813626,1736125835374,-500.0,0.00010976,2]
[347813627,1736125835384,-242.14448323,0.00010976,2]
[347813628,1736125835393,-500.0,0.00010976,2]
[347813629,1736125835403,-500.0,0.00010976,2]
[347813630,1736125835415,-500.0,0.00010976,2]
[347813631,1736125835424,-500.0,0.00010976,2]
[347813632,1736125835434,-500.0,0.00010976,2]
[347813633,1736125835443,-500.0,0.00010976,2]
[347813634,1736125835453,-500.0,0.00010976,2]
[347813635,1736125835462,-500.0,0.00010976,2]
[347813636,1736125835473,-500.0,0.00010976,2]
[347813637,1736125835482,-500.0,0.00010976,2]
[347813638,1736125835492,-500.0,0.00010976,2]
[347813639,1736125835501,-500.0,0.00010976,2]
[347813640,1736125835510,-500.0,0.00010976,2]
[347813641,1736125835520,-500.0,0.00010976,2]
[347813642,1736125835530,-500.0,0.00010976,2]
[347813643,1736125835540,-500.0,0.00010976,2]
[347813644,1736125835549,-500.0,0.00010976,2]
[347813645,1736125835559,-500.0,0.00010976,2]
[347813646,1736125835569,-500.0,0.00010976,2]
[347813647,1736125835578,-431.15598709,0.00010976,2]
[347813648,1736125835588,-500.0,0.00010976,2]
[347813649,1736125835599,-500.0,0.00010976,2]
[347813650,1736125835608,-500.0,0.00010976,2]
[347813651,1736125835618,-500.0,0.00010976,2]
[347813652,1736125835627,-500.0,0.00010976,2]
[347813653,1736125835637,-179.93308666,0.00010976,2]
[347813654,1736125835651,-384.40691334,0.00010976,2]
[347813655,1736125835662,-500.0,0.00010976,2]
[347813656,1736125835672,-500.0,0.00010976,2]
[347813657,1736125835681,-500.0,0.00010976,2]
[347813658,1736125835691,-606.86,0.00010976,2]
[347813659,1736125835700,-500.0,0.00010976,2]
[347813660,1736125835710,-500.0,0.00010976,2]
[347813661,1736125835719,-500.0,0.00010976,2]
[347813662,1736125835728,-500.0,0.00010976,2]
[347813663,1736125835739,-500.0,0.00010976,2]
[347813664,1736125835749,-500.0,0.00010976,2]
[347813665,1736125835758,-500.0,0.00010976,2]
[347813666,1736125835767,-500.0,0.00010976,2]
[347813667,1736125835776,-500.0,0.00010976,2]
[347813668,1736125835786,-500.0,0.00010976,2]
[347813669,1736125835795,-500.0,0.00010976,2]
[347813670,1736125835803,-500.0,0.00010976,2]
[347813671,1736125835813,-500.0,0.00010976,2]
[347813672,1736125835823,-500.0,0.00010976,2]
[347813673,1736125835832,-629.44,0.00010976,2]
[347813674,1736125835841,-611.24893166,0.00010976,2]
[347813675,1736125835850,-500.0,0.00010976,2]
[347813676,1736125835860,-500.0,0.00010976,2]
[347813677,1736125835869,-500.0,0.00010976,2]
[347813678,1736125835878,-500.0,0.00010976,2]
[347813679,1736125835887,-500.0,0.00010976,2]
[347813680,1736125835896,-500.0,0.00010976,2]
[347813681,1736125835907,-500.0,0.00010976,2]
[347813682,1736125835917,-312.09912825,0.00010976,2]
[347813683,1736125835931,-379.06956026,0.00010976,2]
[347813684,1736125835941,-500.0,0.00010976,2]
[347813685,1736125835951,-500.0,0.00010976,2]
[347813686,1736125835960,-519.55,0.00010976,2]
[347813687,1736125835969,-500.0,0.00010976,2]
[347813688,1736125835978,-500.0,0.00010976,2]
[347813689,1736125835987,-500.0,0.00010976,2]
[347813690,1736125835997,-500.0,0.00010976,2]
[347813691,1736125836006,-500.0,0.00010976,2]
[347813692,1736125836016,-500.0,0.00010976,2]
[347813693,1736125836025,-500.0,0.00010976,2]
[347813694,1736125836034,-500.0,0.00010976,2]
[347813695,1736125836043,-500.0,0.00010976,2]
[347813696,1736125836052,-500.0,0.00010976,2]
[347813697,1736125836061,-500.0,0.00010976,2]
[347813698,1736125836071,-500.0,0.00010976,2]
[347813699,1736125836080,-500.0,0.00010976,2]
[347813700,1736125836089,-500.0,0.00010976,2]
[347813701,1736125836100,-500.0,0.00010976,2]
[347813702,1736125836109,-500.0,0.00010976,2]
[347813703,1736125836119,-500.0,0.00010976,2]
[347813704,1736125836129,-500.0,0.00010976,2]
[347813705,1736125836138,-500.0,0.00010976,2]
[347813706,1736125836147,-500.0,0.00010976,2]
[347813707,1736125836158,-500.0,0.00010976,2]
[347813708,1736125836167,-500.0,0.00010976,2]
[347813709,1736125836176,-500.0,0.00010976,2]
[347813710,1736125836186,-500.0,0.00010976,2]
[347813711,1736125836195,-500.0,0.00010976,2]
[347813712,1736125836204,-419.8402372,0.00010976,2]